bitfinex/quotes_BTCUSD_20251208
["timestamp","ask_amount","ask_price","bid_price","bid_amount"]
[1765199697157,0.03345909,91851.0,91850.0,0.23044541]
[1765199698311,0.03345909,91851.0,91850.0,0.0002]
[1765199699324,0.03345909,91851.0,91849.0,0.21774814]
[1765199699516,0.03345909,91850.0,91849.0,0.21774814]
[1765199699712,0.06263272,91850.0,91848.0,0.01088755]
[1765199699961,0.03345909,91849.0,91848.0,0.22863822]
[1765199700161,0.06263272,91849.0,91845.0,0.22864605]
[1765199700317,0.02219599,91846.0,91843.0,0.22865005]
[1765199700516,0.01015971,91845.0,91844.0,0.21775986]
[1765199702470,0.01015971,91845.0,91844.0,0.21937273]
[1765199702968,0.01315971,91845.0,91844.0,0.21937273]
[1765199703590,0.01313012,91845.0,91844.0,0.21937273]
[1765199705832,0.01313012,91845.0,91844.0,0.21229349]
[1765199706249,0.01313012,91845.0,91844.0,0.21368896]
[1765199708333,0.01313012,91845.0,91844.0,0.27742896]
[1765199708554,0.01313012,91845.0,91844.0,0.27754581]
[1765199709404,0.01313012,91845.0,91844.0,0.21380581]
[1765199712347,0.01313012,91845.0,91844.0,0.27641581]
[1765199712568,0.01313012,91845.0,91844.0,0.37332581]
[1765199712750,0.01313012,91845.0,91844.0,0.27641581]
[1765199713203,0.01313012,91845.0,91844.0,0.21380581]
[1765199713927,0.01313012,91845.0,91844.0,0.27641581]
[1765199714153,0.01313012,91845.0,91844.0,0.21380581]
[1765199714931,0.01313012,91845.0,91844.0,0.27641581]
[1765199715104,0.01313012,91845.0,91844.0,0.21380581]
[1765199716503,0.01313012,91845.0,91844.0,0.37332581]
[1765199716907,0.01312275,91845.0,91844.0,0.37332581]
[1765199717924,0.01312275,91845.0,91844.0,0.39550538]
[1765199718330,0.01012275,91845.0,91844.0,0.39550538]
[1765199718738,0.01312275,91845.0,91844.0,0.39650538]
[1765199719954,0.01312275,91845.0,91844.0,5.71950538]
[1765199720357,0.01314062,91845.0,91844.0,5.71950538]
[1765199720888,0.003,91845.0,91844.0,5.71950538]
[1765199721267,0.003,91845.0,91844.0,5.71850538]
[1765199721512,0.01014598,91880.0,91879.0,0.21767759]
[1765199721863,0.01014598,91880.0,91879.0,0.21805539]
[1765199722716,0.01014598,91880.0,91879.0,0.21811466]
[1765199722717,0.01114598,91880.0,91879.0,0.21811466]
[1765199722915,0.01614598,91880.0,91879.0,0.00243707]
[1765199723138,0.2338212,91880.0,91879.0,0.00243707]
[1765199723341,0.01614598,91880.0,91879.0,0.22011466]
[1765199728462,0.006,91880.0,91879.0,0.22011466]
[1765199729953,0.006,91880.0,91879.0,0.38124753]
[1765199730541,0.006,91880.0,91879.0,0.28433753]
[1765199731064,0.006,91880.0,91879.0,0.38124753]
[1765199731917,0.005,91880.0,91879.0,0.4034271]
[1765199732328,0.01724,91896.0,91895.0,0.21763969]
[1765199732524,0.01014598,91901.0,91900.0,0.21762785]
[1765199732733,0.01014598,91901.0,91894.0,0.04764]
[1765199732734,0.01088186,91896.0,91891.0,0.01088245]
[1765199732910,0.22851945,91896.0,91892.0,0.22852914]
[1765199733111,0.01088174,91897.0,91894.0,0.22852412]
[1765199733337,0.021023,91897.0,91895.0,0.21763954]
[1765199733674,0.23865941,91897.0,91894.0,0.22852412]
[1765199733870,0.01088186,91896.0,91892.0,0.01088234]
[1765199734077,0.21764181,91895.0,91892.0,0.01088234]
[1765199734272,0.21764207,91894.0,91892.0,0.22852905]
[1765199734500,0.21764181,91895.0,91892.0,0.22852905]
[1765199734692,0.22951823,91897.0,91893.0,0.22852665]
[1765199735065,0.22851823,91897.0,91893.0,0.22852665]
[1765199735330,0.23651823,91897.0,91894.0,0.001]
[1765199735558,0.22851823,91897.0,91894.0,0.22852393]
[1765199735857,0.22851823,91897.0,91893.0,0.01088222]
[1765199735858,0.21764206,91894.0,91893.0,0.001]
[1765199736579,0.01088198,91895.0,91891.0,0.22852938]
[1765199736777,0.01088198,91895.0,91892.0,0.22852761]
[1765199737003,0.22852399,91895.0,91894.0,0.001]
[1765199737201,0.22852096,91896.0,91894.0,0.001]
[1765199737423,0.22852096,91896.0,91894.0,0.21864182]
[1765199738172,0.01088186,91896.0,91893.0,0.2285246]
[1765199738376,0.2285169,91897.0,91894.0,0.22852208]
[1765199738979,0.01088245,91891.0,91884.0,0.00023248]
[1765199739196,0.21766338,91885.0,91884.0,0.00023248]
[1765199739770,0.23985937,91885.0,91884.0,0.00023248]
[1765199739966,0.21766338,91885.0,91884.0,0.00023248]
[1765199740617,0.23985937,91885.0,91884.0,0.00023248]
[1765199741298,0.21766338,91885.0,91884.0,0.00023248]
[1765199741524,0.22866338,91885.0,91884.0,0.00223248]
[1765199741696,0.21766338,91885.0,91884.0,0.00023248]
[1765199741835,0.22866338,91885.0,91884.0,0.00223248]
[1765199743989,0.23880744,91885.0,91884.0,0.00223248]
[1765199751346,0.40414728,91885.0,91884.0,0.00223248]
[1765199751553,0.74934327,91885.0,91884.0,0.00223248]
[1765199751770,0.6253942,91880.0,91879.0,5.927e-05]
[1765199751973,1.0648249,91880.0,91879.0,5.927e-05]
[1765199752181,1.1732867,91880.0,91879.0,5.927e-05]
[1765199752371,1.14401754,91880.0,91879.0,5.927e-05]
[1765199752602,1.18293834,91880.0,91879.0,5.927e-05]
[1765199752814,1.14401754,91880.0,91879.0,5.927e-05]
[1765199753379,1.20025937,91880.0,91879.0,5.927e-05]
[1765199753580,1.20725937,91880.0,91879.0,0.00105927]
[1765199753985,1.21725937,91880.0,91879.0,0.00305927]
[1765199754205,1.16126757,91880.0,91879.0,5.927e-05]
[1765199754662,1.18026757,91880.0,91879.0,0.00205927]
[1765199755206,1.05454829,91880.0,91879.0,0.00205927]
[1765199755414,1.07178829,91880.0,91879.0,0.00205927]
[1765199755620,0.27106931,91880.0,91879.0,0.00305927]
[1765199756067,0.3335923,91880.0,91879.0,0.00305927]
[1765199756301,0.5940593,91880.0,91879.0,0.00305927]
[1765199756500,0.60925529,91880.0,91879.0,0.00205927]
[1765199756623,0.67177828,91880.0,91879.0,0.00205927]
[1765199756819,0.67177828,91880.0,91879.0,5.927e-05]
[1765199756820,0.65677828,91880.0,91879.0,5.927e-05]
[1765199757257,0.65277828,91880.0,91879.0,5.927e-05]
[1765199757460,0.63858229,91880.0,91879.0,0.00205927]
[1765199758308,0.2358193,91880.0,91879.0,0.00205927]
[1765199758714,0.2378193,91880.0,91879.0,0.00205927]
[1765199760470,0.26001341,91880.0,91879.0,0.00205927]
[1765199761080,0.23781742,91880.0,91879.0,0.00205927]
[1765199761213,0.26001341,91880.0,91879.0,0.00205927]
[1765199762400,0.26001509,91880.0,91879.0,0.00205927]
[1765199762801,0.2378191,91880.0,91879.0,0.00205927]
[1765199766946,0.26001509,91880.0,91879.0,0.00205927]
[1765199767356,0.2378191,91880.0,91879.0,0.00205927]
[1765199769707,0.26001509,91880.0,91879.0,0.00205927]
[1765199770430,0.37943669,91880.0,91879.0,0.00205927]
[1765199770588,0.64553808,91880.0,91879.0,0.00205927]
[1765199770810,1.04553808,91880.0,91879.0,0.00205927]
[1765199773384,1.03753808,91880.0,91879.0,5.927e-05]
[1765199773800,1.05053808,91880.0,91879.0,0.00205927]
[1765199774031,1.04053808,91880.0,91879.0,5.927e-05]
[1765199774391,1.04953808,91880.0,91879.0,0.00205927]
[1765199774588,1.04453808,91880.0,91879.0,0.00205927]
[1765199775091,1.04653808,91880.0,91879.0,0.00205927]
[1765199775516,1.02434209,91880.0,91879.0,0.00205927]
[1765199775656,1.04653808,91880.0,91879.0,0.00205927]
[1765199781234,1.15501736,91880.0,91879.0,0.00205927]
[1765199781442,1.04653808,91880.0,91879.0,0.00205927]
[1765199781607,1.05742492,91880.0,91879.0,0.00205927]
[1765199781959,1.06377808,91880.0,91879.0,0.00205927]
[1765199782159,0.64158209,91880.0,91879.0,0.00205927]
[1765199782635,0.63258209,91880.0,91879.0,5.927e-05]
[1765199782849,0.63058209,91880.0,91879.0,5.927e-05]
[1765199783139,0.64358209,91880.0,91879.0,5.927e-05]
[1765199783345,0.65777808,91880.0,91879.0,5.927e-05]
[1765199783541,0.65277808,91880.0,91879.0,5.927e-05]
[1765199783741,0.65477808,91880.0,91879.0,5.927e-05]
[1765199784044,0.63458209,91880.0,91879.0,5.927e-05]
[1765199784704,0.65677808,91880.0,91879.0,5.927e-05]
[1765199786792,0.65680763,91880.0,91879.0,5.927e-05]
[1765199786992,0.63461164,91880.0,91879.0,5.927e-05]
[1765199787498,0.65680763,91880.0,91879.0,5.927e-05]
[1765199788035,1.05680763,91880.0,91879.0,5.927e-05]
[1765199788584,0.63461164,91880.0,91879.0,5.927e-05]
[1765199789828,0.33380763,91880.0,91879.0,5.927e-05]
[1765199790237,0.33380801,91880.0,91879.0,5.927e-05]
[1765199790691,0.31161202,91880.0,91879.0,5.927e-05]
[1765199792109,0.33380801,91880.0,91879.0,5.927e-05]
[1765199792512,0.31161202,91880.0,91879.0,5.927e-05]
[1765199793101,0.01417381,91880.0,91879.0,5.927e-05]
[1765199793301,0.004,91880.0,91879.0,5.927e-05]
[1765199793537,0.004,91880.0,91879.0,0.21773686]
[1765199794241,0.004,91880.0,91879.0,0.21934973]
[1765199794921,0.002,91880.0,91879.0,0.21934973]
[1765199795122,0.002,91880.0,91879.0,0.38118973]
[1765199795499,0.01724,91898.0,91879.0,0.38118973]
[1765199795500,0.06252299,91898.0,91897.0,0.21763496]
[1765199795707,0.01017381,91898.0,91897.0,0.01088174]
[1765199795927,0.01724,91901.0,91899.0,0.21763022]
[1765199795928,0.08719674,91901.0,91899.0,0.21763022]
[1765199796130,0.01017381,91900.0,91899.0,0.21763022]
[1765199796553,0.01017381,91900.0,91898.0,0.01088162]
[1765199796753,0.01017381,91900.0,91898.0,0.22851312]
[1765199796956,0.01017381,91900.0,91898.0,0.01088162]
[1765199797151,0.01017381,91900.0,91898.0,0.22851294]
[1765199797692,0.01017381,91900.0,91899.0,0.21763022]
[1765199798041,0.01017381,91901.0,91900.0,0.21762785]
[1765199798278,0.01088068,91906.0,91903.0,0.01088103]
[1765199798476,0.22849432,91906.0,91903.0,0.01088103]
[1765199798697,0.01016071,91905.0,91901.0,0.01088127]
[1765199798877,0.01088091,91904.0,91901.0,0.01088127]
[1765199799071,0.23865996,91904.0,91901.0,0.01088127]
[1765199799331,0.01016066,91903.0,91901.0,0.01088127]
[1765199799535,0.01088115,91902.0,91898.0,0.22851367]
[1765199799755,0.21763771,91896.0,91893.0,0.2176443]
[1765199799949,0.21763771,91896.0,91892.0,0.01088234]
[1765199799950,0.01088198,91895.0,91892.0,0.01088234]
[1765199800157,0.2285218,91895.0,91892.0,0.22852901]
[1765199800361,0.01088281,91888.0,91883.0,0.0108834]
[1765199800597,0.01088293,91887.0,91883.0,0.0108834]
[1765199800777,0.22854891,91885.0,91882.0,0.01088352]
[1765199800988,0.01088316,91885.0,91882.0,0.01088352]
[1765199801208,0.21766749,91884.0,91881.0,0.22855648]
[1765199801635,0.21766831,91883.0,91881.0,0.22855648]
[1765199801864,0.21766831,91883.0,91879.0,0.21934777]
[1765199801865,0.21767522,91880.0,91879.0,5.927e-05]
[1765199802980,0.22067522,91880.0,91879.0,5.927e-05]
[1765199803358,0.21767522,91880.0,91879.0,5.927e-05]
[1765199803569,0.21967522,91880.0,91879.0,5.927e-05]
[1765199803778,0.22982278,91880.0,91879.0,5.927e-05]
[1765199803983,0.31454176,91880.0,91879.0,5.927e-05]
[1765199804186,0.63754176,91880.0,91879.0,5.927e-05]
[1765199804416,0.63854176,91880.0,91879.0,5.927e-05]
[1765199804602,0.63854176,91880.0,91866.0,0.22477076]
[1765199804603,0.22858503,91870.0,91866.0,0.22477076]
[1765199804822,0.25077684,91872.0,91868.0,0.01088518]
[1765199804976,0.25077684,91872.0,91869.0,0.21770035]
[1765199805331,0.01088482,91871.0,91868.0,0.2285887]
[1765199805530,0.21770129,91869.0,91866.0,0.00717934]
[1765199806067,0.05978293,91870.0,91869.0,0.21770129]
[1765199806421,0.02219599,91869.0,91867.0,0.0108853]
[1765199806846,0.02219599,91872.0,91869.0,0.01088506]
[1765199807019,0.01088459,91873.0,91869.0,0.01088506]
[1765199807419,0.05978293,91870.0,91869.0,0.22858635]
[1765199808453,0.06278293,91870.0,91869.0,0.22858635]
[1765199808660,0.06278293,91870.0,91869.0,0.21358635]
[1765199808888,0.003,91870.0,91869.0,0.22447141]
[1765199810094,0.003,91870.0,91869.0,0.22608428]
[1765199810438,0.003,91870.0,91869.0,0.38593428]
[1765199810844,0.003,91870.0,91868.0,0.00023254]
[1765199810845,0.28022428,91869.0,91868.0,0.00023254]
[1765199811064,0.6852032,91869.0,91868.0,0.00023254]
[1765199811361,0.69535346,91869.0,91868.0,0.00023254]
[1765199811962,0.69635346,91869.0,91868.0,0.00023254]
[1765199812365,0.69835346,91869.0,91868.0,0.00023254]
[1765199812742,0.69635346,91869.0,91868.0,0.00023254]
[1765199812947,0.70335346,91869.0,91868.0,0.00023254]
[1765199813293,0.70235346,91869.0,91868.0,0.00023254]
[1765199813644,0.70735346,91869.0,91868.0,0.00023254]
[1765199813830,1.10735346,91869.0,91868.0,0.00023254]
[1765199814851,1.10734766,91869.0,91868.0,0.00023254]
[1765199815956,1.10734611,91869.0,91868.0,0.00023254]
[1765199819645,1.11823378,91869.0,91868.0,0.00023254]
[1765199819853,1.22671306,91869.0,91868.0,0.00023254]
[1765199820214,1.11823378,91869.0,91868.0,0.00023254]
[1765199825346,3.11823378,91869.0,91868.0,0.00023254]
[1765199825551,2.98622378,91869.0,91868.0,0.00023254]
[1765199825775,1.49128178,91869.0,91868.0,0.00023254]
[1765199825995,1.50352178,91869.0,91868.0,0.00023254]
[1765199826190,1.61200106,91869.0,91868.0,0.00023254]
[1765199826388,1.61100106,91869.0,91868.0,0.00123254]
[1765199826998,0.217789,91832.0,91831.0,4.008e-05]
[1765199827195,0.31974798,91832.0,91831.0,0.00015695]
[1765199827996,0.37953091,91832.0,91831.0,0.00123292]
[1765199828312,0.70553091,91832.0,91831.0,0.00123292]
[1765199828459,0.70253091,91832.0,91831.0,0.00123292]
[1765199828673,0.44530592,91832.0,91831.0,0.21902429]
[1765199828872,0.46454592,91832.0,91831.0,0.21902429]
[1765199829070,0.46454592,91832.0,91831.0,0.00123292]
[1765199829296,0.46554592,91832.0,91831.0,0.00523292]
[1765199829676,0.48674191,91832.0,91831.0,0.00123292]
[1765199830097,0.70453091,91832.0,91831.0,0.00323292]
[1765199830372,0.71465592,91832.0,91831.0,0.00323292]
[1765199831188,1.11465592,91832.0,91831.0,0.00323292]
[1765199833313,1.2231352,91832.0,91831.0,0.00323292]
[1765199833955,1.6957852,91832.0,91831.0,0.00323292]
[1765199834163,1.6937852,91832.0,91831.0,0.00323292]
[1765199834562,1.7037852,91832.0,91831.0,0.00323292]
[1765199834992,1.7037852,91832.0,91831.0,0.00123292]
[1765199835193,1.7037852,91832.0,91831.0,0.00323292]
[1765199835746,1.7037852,91832.0,91831.0,0.00123292]
[1765199835992,1.7037852,91832.0,91831.0,0.00223292]
[1765199836206,1.7077852,91832.0,91831.0,0.00223292]
[1765199836980,1.6937852,91832.0,91831.0,0.00123292]
[1765199837435,1.7047852,91832.0,91831.0,0.00123292]
[1765199838235,1.7047852,91832.0,91830.0,0.0002]
[1765199838442,2.74411464,91831.0,91830.0,0.00031698]
[1765199839054,3.14411464,91831.0,91830.0,0.00031698]
[1765199839614,3.22381751,91831.0,91830.0,1e-08]
[1765199839742,2.62552696,91824.0,91823.0,0.00023271]
[1765199839954,2.7442476,91824.0,91823.0,0.00023271]
[1765199840176,2.77335907,91824.0,91823.0,0.00023271]
[1765199840335,3.1442476,91824.0,91823.0,0.00023271]
[1765199840978,3.14422895,91824.0,91823.0,0.00023271]
[1765199841593,0.6255578,91811.0,91810.0,0.0002]
[1765199841796,0.65290182,91811.0,91810.0,0.0002]
[1765199842368,0.65290182,91811.0,91800.0,0.0002]
[1765199842369,0.62558153,91801.0,91800.0,0.0002]
[1765199842570,0.63568555,91801.0,91800.0,0.0002]
[1765199843170,1.03568555,91801.0,91800.0,0.0002]
[1765199843379,1.14416483,91801.0,91800.0,0.0002]
[1765199844240,1.15716483,91801.0,91800.0,0.0002]
[1765199844442,1.17440483,91801.0,91800.0,0.0002]
[1765199844735,1.18276781,91801.0,91800.0,0.0002]
[1765199845479,3.18276781,91801.0,91800.0,0.0002]
[1765199845978,0.62560526,91791.0,91780.0,0.0002]
[1765199846193,0.63570928,91791.0,91780.0,0.0002]
[1765199846821,1.03570928,91791.0,91780.0,0.0002]
[1765199847267,1.04570928,91791.0,91790.0,0.00059011]
[1765199847696,1.04570928,91791.0,91790.0,0.00155042]
[1765199848322,0.625629,91781.0,91780.0,0.0002]
[1765199848556,0.65297302,91781.0,91780.0,0.0002]
[1765199849198,1.05297302,91781.0,91780.0,0.0002]
[1765199849823,1.1614523,91781.0,91780.0,0.0002]
[1765199850245,1.16581591,91781.0,91780.0,0.0002]
[1765199851108,1.12711956,91781.0,91780.0,0.0002]
[1765199851696,1.13011956,91781.0,91780.0,0.0012]
[1765199852533,1.11287956,91781.0,91780.0,0.0012]
[1765199852740,1.13015956,91781.0,91780.0,0.0012]
[1765199853418,0.73015956,91781.0,91780.0,0.0012]
[1765199853659,0.83863884,91781.0,91780.0,0.0012]
[1765199854624,0.83863884,91781.0,91780.0,0.00149109]
[1765199855364,0.82853482,91781.0,91780.0,0.00149109]
[1765199855588,0.83861925,91781.0,91780.0,0.00149109]
[1765199855790,1.23861925,91781.0,91780.0,0.00149109]
[1765199856608,0.62564562,91774.0,91773.0,4.008e-05]
[1765199856835,0.63573005,91774.0,91773.0,4.008e-05]
[1765199857510,0.6256765,91761.0,91760.0,0.0002]
[1765199857803,0.65304093,91761.0,91760.0,0.00031701]
[1765199858017,0.76137817,91761.0,91760.0,0.00031701]
[1765199858244,0.8211611,91761.0,91760.0,0.00031701]
[1765199858443,0.30270025,91751.0,91750.0,0.0002]
[1765199858654,0.3732837,91751.0,91750.0,0.0002]
[1765199859014,0.37333012,91751.0,91750.0,0.0002]
[1765199859221,1.33363312,91751.0,91750.0,0.0002]
[1765199859616,1.15233712,91751.0,91750.0,0.0002]
[1765199860050,1.15433712,91751.0,91750.0,0.0012]
[1765199861011,0.87180612,91751.0,91750.0,0.0012]
[1765199861258,0.86180612,91751.0,91750.0,0.0002]
[1765199861463,1.26480612,91751.0,91750.0,0.0012]
[1765199861632,1.27580612,91751.0,91750.0,0.0012]
[1765199862014,1.25852612,91751.0,91750.0,0.0012]
[1765199862218,1.27580612,91751.0,91750.0,0.0012]
[1765199862619,0.62574778,91731.0,91730.0,0.0002]
[1765199862823,0.65311221,91731.0,91730.0,0.0002]
[1765199863022,0.65311221,91731.0,91730.0,0.0016563]
[1765199863454,0.71289514,91731.0,91730.0,0.0016563]
[1765199864458,0.71289514,91731.0,91730.0,0.0036563]
[1765199864459,2.70518169,91731.0,91730.0,0.0036563]
[1765199864663,2.70518169,91731.0,91720.0,0.0002]
[1765199864664,2.72737768,91731.0,91720.0,0.0002]
[1765199864860,0.06252299,91689.0,91682.0,0.01090726]
[1765199865060,0.06252299,91689.0,91656.0,0.09329]
[1765199865061,0.01090702,91684.0,91667.0,0.21817867]
[1765199865335,0.02219599,91677.0,91672.0,0.01090845]
[1765199865542,0.07980299,91677.0,91676.0,0.00165291]
[1765199865986,0.13958592,91677.0,91676.0,0.0020416]
[1765199866460,0.01728,91685.0,91683.0,0.01090714]
[1765199866647,0.01007658,91690.0,91688.0,0.01090655]
[1765199866964,0.01007658,91690.0,91683.0,0.01090714]
[1765199866965,0.01007658,91700.0,91697.0,0.01090548]
[1765199867169,0.01728,91704.0,91703.0,0.21809366]
[1765199867372,0.02219599,91704.0,91701.0,0.010905]
[1765199867597,0.02735658,91706.0,91703.0,0.22899828]
[1765199867598,0.01007658,91705.0,91703.0,0.22899828]
[1765199867811,0.06252299,91706.0,91705.0,0.06124]
[1765199868032,0.21805312,91721.0,91711.0,0.21807634]
[1765199868241,0.0698637,91712.0,91711.0,0.21807634]
[1765199868864,0.0698637,91712.0,91711.0,0.21968921]
[1765199869081,0.0698637,91712.0,91711.0,0.219806]
[1765199869287,0.0728637,91712.0,91711.0,0.219806]
[1765199869621,0.07286708,91712.0,91711.0,0.219806]
[1765199869824,0.07286708,91712.0,91711.0,0.374336]
[1765199870032,0.06278293,91712.0,91711.0,0.374336]
[1765199870233,0.06278293,91712.0,91711.0,0.281046]
[1765199870497,0.06278293,91712.0,91711.0,0.374336]
[1765199870856,0.06378293,91712.0,91711.0,0.374336]
[1765199872695,0.004,91712.0,91711.0,0.39651557]
[1765199872891,0.004,91712.0,91711.0,0.697336]
[1765199873138,0.004,91712.0,91711.0,0.71951557]
[1765199873495,0.003,91712.0,91711.0,0.71951557]
[1765199873927,0.004,91712.0,91711.0,0.72251557]
[1765199874331,0.001,91712.0,91711.0,0.72251557]
[1765199874712,0.004,91712.0,91711.0,0.72251557]
[1765199874917,0.004,91712.0,91711.0,0.377336]
[1765199875543,0.004,91712.0,91711.0,0.284046]
[1765199875701,0.004,91712.0,91711.0,0.377336]
[1765199875901,0.001,91712.0,91711.0,0.37788967]
[1765199876401,0.001,91712.0,91711.0,0.40006924]
[1765199876402,0.002,91712.0,91711.0,0.40006924]
[1765199876823,0.002,91712.0,91711.0,0.39706924]
[1765199877108,0.003,91712.0,91711.0,0.40206924]
[1765199877658,0.002,91712.0,91711.0,0.39706924]
[1765199878063,0.003,91712.0,91711.0,0.37988967]
[1765199878491,0.003,91712.0,91711.0,0.39716967]
[1765199878820,0.003,91712.0,91711.0,0.41934924]
[1765199879426,0.003,91712.0,91711.0,0.74234924]
[1765199879859,0.003,91712.0,91711.0,0.72016967]
[1765199879996,0.003,91712.0,91711.0,5.74234924]
[1765199880411,0.0101164,91742.0,91730.0,0.21803117]
[1765199880646,0.01089799,91760.0,91730.0,0.44958361]
[1765199880647,0.0101164,91755.0,91730.0,0.44958361]
[1765199880961,0.0101164,91754.0,91730.0,0.44958361]
[1765199881106,0.0101164,91753.0,91730.0,0.44958361]
[1765199881307,0.0101164,91752.0,91730.0,0.44958361]
[1765199881668,0.21796469,91758.0,91730.0,0.45258361]
[1765199881669,0.00148715,91731.0,91730.0,0.45258361]
[1765199881974,0.00348715,91731.0,91730.0,0.45258361]
[1765199883617,0.00348715,91731.0,91730.0,0.77558361]
[1765199884019,0.00248715,91731.0,91730.0,0.77258361]
[1765199884227,0.0101164,91768.0,91767.0,0.21794326]
[1765199884588,0.01089645,91773.0,91770.0,0.0108968]
[1765199884712,0.00107742,91768.0,91767.0,0.01089716]
[1765199885361,0.00119374,91768.0,91767.0,0.22884042]
[1765199885578,0.00619374,91768.0,91767.0,0.22884042]
[1765199886187,0.00619374,91768.0,91767.0,0.22984042]
[1765199886877,0.00619374,91768.0,91767.0,0.22884042]
[1765199887237,0.00719374,91768.0,91767.0,0.23184042]
[1765199887432,0.00219374,91768.0,91767.0,0.23184042]
[1765199887645,0.00219374,91768.0,91767.0,0.39117042]
[1765199887882,0.00419374,91768.0,91767.0,0.29560042]
[1765199888538,0.00419374,91768.0,91767.0,0.29721329]
[1765199888744,0.00419374,91768.0,91767.0,0.39378329]
[1765199894819,0.00119374,91768.0,91767.0,0.38978329]
[1765199895175,0.00419374,91768.0,91767.0,0.39678329]
[1765199895377,0.00419374,91768.0,91767.0,0.23745329]
[1765199896276,0.00419374,91768.0,91767.0,0.007]
[1765199896480,0.00419374,91768.0,91767.0,0.29152326]
[1765199896685,0.00419374,91768.0,91767.0,0.22494326]
[1765199896888,0.00419374,91768.0,91767.0,0.39034613]
[1765199897327,0.00419374,91768.0,91767.0,0.29313613]
[1765199897538,0.00419374,91768.0,91767.0,0.39034613]
[1765199899978,0.00419374,91768.0,91767.0,0.29313613]
[1765199900385,0.00419374,91768.0,91767.0,0.22655613]
[1765199900614,0.00419374,91768.0,91767.0,0.007]
[1765199900926,0.22312463,91768.0,91767.0,0.007]
[1765199901263,0.00518374,91768.0,91767.0,0.007]
[1765199901491,0.00419374,91768.0,91767.0,0.22494326]
[1765199901676,0.00419374,91768.0,91767.0,0.007]
[1765199902167,0.00419374,91768.0,91767.0,0.22494326]
[1765199903366,0.22312463,91768.0,91767.0,0.007]
[1765199903567,0.22411463,91768.0,91767.0,0.007]
[1765199904091,0.22312463,91768.0,91767.0,0.007]
[1765199904490,0.00218374,91768.0,91765.0,0.0108974]
[1765199904697,0.00310632,91768.0,91767.0,0.22094326]
[1765199904895,0.00211632,91768.0,91767.0,0.22094326]
[1765199905265,0.00011632,91768.0,91767.0,0.21794326]
[1765199905447,0.00311632,91768.0,91767.0,0.21894326]
[1765199905676,0.00311632,91768.0,91767.0,0.22094326]
[1765199906091,0.00311632,91768.0,91767.0,0.21894326]
[1765199906700,0.00011632,91768.0,91767.0,0.21794326]
[1765199906899,0.00011632,91768.0,91767.0,0.21994326]
[1765199906900,0.00111632,91768.0,91767.0,0.21994326]
[1765199907510,0.00211632,91768.0,91767.0,0.22194326]
[1765199908309,0.00211632,91768.0,91767.0,0.38573326]
[1765199908539,0.00211632,91768.0,91767.0,0.38734613]
[1765199909508,0.00211632,91768.0,91767.0,0.4095257]
[1765199909899,0.00211632,91768.0,91767.0,0.7498057]
[1765199910304,0.00219374,91768.0,91767.0,0.7478057]
[1765199910691,0.00319374,91768.0,91767.0,0.78882751]
[1765199910917,0.00119374,91768.0,91767.0,5.7458057]
[1765199911306,0.00319374,91768.0,91767.0,5.7528057]
[1765199911637,0.01014493,91810.0,91809.0,0.21784356]
[1765199911822,0.01053504,91810.0,91807.0,0.01089241]
[1765199911967,0.01014493,91809.0,91807.0,0.01089241]
[1765199912178,0.01089241,91807.0,91801.0,0.22875438]
[1765199912372,0.02202722,91808.0,91805.0,0.01089265]
[1765199912577,0.01014493,91808.0,91806.0,0.21785002]
[1765199912830,0.01014493,91809.0,91806.0,0.01089253]
[1765199913033,0.01014493,91809.0,91806.0,0.22874248]
[1765199913034,0.05978293,91807.0,91806.0,0.22874248]
[1765199913247,0.06992786,91807.0,91806.0,0.22874248]
[1765199913648,0.06992786,91807.0,91805.0,0.01089265]
[1765199913805,0.21785793,91804.0,91799.0,0.01089336]
[1765199914006,0.21787045,91798.0,91793.0,0.21787993]
[1765199914229,0.01014493,91797.0,91794.0,0.01089395]
[1765199914391,0.21786833,91799.0,91795.0,0.21787624]
[1765199914596,0.00099,91795.0,91793.0,0.22877482]
[1765199914834,0.00099,91794.0,91793.0,0.22877482]
[1765199914991,0.00099,91794.0,91793.0,0.23277482]
[1765199915195,0.00099,91794.0,91793.0,0.23577482]
[1765199915433,0.00099,91794.0,91793.0,0.23177482]
[1765199915639,0.00099,91794.0,91793.0,0.22877482]
[1765199915838,0.00099,91794.0,91793.0,0.01089407]
[1765199916043,0.00099,91794.0,91793.0,0.01289407]
[1765199916437,0.02417599,91794.0,91793.0,0.002]
[1765199916635,0.03432092,91794.0,91793.0,0.002]
[1765199916981,0.03333092,91794.0,91793.0,0.002]
[1765199917193,0.07464792,91794.0,91793.0,0.002]
[1765199917368,0.07464792,91794.0,91781.0,0.0108955]
[1765199917369,0.01089478,91787.0,91781.0,0.0108955]
[1765199917570,0.05978293,91783.0,91782.0,0.21790723]
[1765199917983,0.05978293,91783.0,91781.0,0.0108955]
[1765199918186,0.05978293,91783.0,91781.0,0.22880457]
[1765199918372,0.05978293,91783.0,91781.0,0.22880514]
[1765199918552,0.05978293,91783.0,91781.0,0.23080514]
[1765199918756,0.05978293,91783.0,91781.0,0.23280514]
[1765199919003,0.05978293,91783.0,91781.0,0.23080514]
[1765199920222,0.05978293,91783.0,91781.0,0.22880514]
[1765199920223,0.01014546,91782.0,91781.0,0.22880514]
[1765199920502,0.11412444,91782.0,91781.0,0.004]
[1765199921062,0.11412444,91782.0,91774.0,0.22882235]
[1765199921063,0.03309172,91779.0,91776.0,0.01089609]
[1765199921261,0.2179175,91778.0,91775.0,0.01089621]
[1765199921475,0.01089609,91776.0,91774.0,0.21792628]
[1765199921696,0.02104143,91777.0,91774.0,0.22882261]
[1765199921901,0.02104143,91777.0,91774.0,0.01089633]
[1765199922103,0.22881798,91776.0,91773.0,0.01089645]
[1765199922416,0.01113449,91775.0,91773.0,0.22882449]
[1765199922799,0.00099,91774.0,91773.0,0.01089645]
[1765199923005,0.01089645,91773.0,91770.0,0.22883278]
[1765199923366,0.00099,91774.0,91773.0,0.21792902]
[1765199923502,0.01014449,91775.0,91774.0,0.001]
[1765199923688,0.003,91776.0,91775.0,0.21792427]
[1765199923889,0.01014449,91779.0,91777.0,0.21791829]
[1765199924601,0.01014449,91779.0,91776.0,0.22881742]
[1765199924769,0.00099,91778.0,91776.0,0.22881742]
[1765199924977,0.00099,91777.0,91776.0,0.22881742]
[1765199925737,0.00099,91777.0,91770.0,0.22883231]
[1765199925960,0.00099,91777.0,91760.0,0.01089799]
[1765199925961,0.21794089,91768.0,91760.0,0.01089799]
[1765199926163,0.29599382,91768.0,91760.0,0.01089799]
[1765199926370,0.31818981,91768.0,91764.0,0.01089751]
[1765199926518,0.31818981,91768.0,91765.0,0.0108974]
[1765199926718,0.07706293,91768.0,91767.0,0.21843022]
[1765199927143,0.06078293,91768.0,91767.0,0.22043022]
[1765199927459,0.05978293,91768.0,91767.0,0.21843022]
[1765199927760,0.06078293,91768.0,91767.0,0.21943022]
[1765199927960,0.06078293,91768.0,91767.0,0.22043022]
[1765199930523,0.001,91768.0,91767.0,0.22043022]